Cogmind - Beta 15 *** ADVENTURER MODE // 2025.08.23 @ 12:15:53 Player: Dreadbot Result: Self-destructed Performance ------------- Evolutions (5) 2500 Regions Visited (4) 800 Robots Destroyed (32) 160 Value Destroyed (1029) 1029 Prototype IDs (0) 0 Alien Tech Used (0) 0 Bonus (800) 800 TOTAL SCORE: 5289 Bonus ------- Registered with UFD 300 Met Optimus in HQ 500 Cogmind --------- Core Integrity 766/1000 Matter 241/300 Energy 69/100 System Corruption 4% Temperature Cool (0) Movement Core (650) Ox12 Location -5/Factory Parts ------- > --- POWER (2) -------- (None) > --- PROPULSION (4) --- (None) > --- UTILITY (8) ------ Improved Coolant Injector Medium Storage Unit Medium Storage Unit Hardlight Generator > --- WEAPON (3) ------- Medium Laser Heavy Phase Cannon > --- INVENTORY (10) --- Light Angular Momentum Engine Fission Core Scrap Suit Seismic Detector Peak State ------------ > --- POWER ------------ Makeshift Power Source Fission Core > --- PROPULSION ------- Carbon-fiber Leg Carbon-fiber Leg Overtuned Titanium Leg Overtuned Titanium Leg > --- UTILITY ---------- Improved Coolant Injector Medium Storage Unit Medium Storage Unit Improved Terrain Scanner > --- WEAPON ----------- Beamcaster Heavy Phase Cannon > --- INVENTORY -------- Light Angular Momentum Engine Fission Core Scrap Suit Seismic Detector Medium Laser [Rating: 45] Favorites ----------- Power Ion Engine Engine Ion Engine Power Core Fission Core Propulsion Light Treads Treads Light Treads Leg Carbon-fiber Leg Utility Improved Terrain Scanner Device Improved Terrain Scanner Storage Medium Storage Unit Protection Scrap Shield Weapon Small Laser Energy Gun Small Laser Energy Cannon Heavy Phase Cannon Ballistic Gun Barrage Gun Build | -11 -10 -10 -7 -5 ------- Run | Yrd Mat Sub Scr Fac Slots Evolved 10 | . . . . 10 Power 1 | . . . . 1 Propulsion 2 | . . . . 2 Utility 6 | . . . . 6 Weapon 1 | . . . . 1 Parts Attached 28 | 8 3 3 4 10 Power 4 | 1 . . 1 2 Engine 3 | 1 . . 1 1 Core 1 | . . . . 1 Reactor . | . . . . . Propulsion 8 | 2 . 2 2 2 Treads 2 | 2 . . . . Leg 6 | . . 2 2 2 Wheel . | . . . . . Hover . | . . . . . Flight . | . . . . . Utility 8 | 3 1 . . 4 Device 4 | 2 . . . 2 Storage 3 | 1 1 . . 1 Processor . | . . . . . Hackware . | . . . . . Protection 1 | . . . . 1 Artifact . | . . . . . Weapon 8 | 2 2 1 1 2 Energy Gun 6 | 2 2 1 . 1 Energy Cannon 1 | . . . . 1 Ballistic Gun 1 | . . . 1 . Ballistic Cannon . | . . . . . Launcher . | . . . . . Special Weapon . | . . . . . Impact Weapon . | . . . . . Slashing Weapon . | . . . . . Piercing Weapon . | . . . . . Special Melee Weapon . | . . . . . Unidentified Prototypes . | . . . . . Parts Lost 12 | . . . . 12 Power 3 | . . . . 3 Propulsion 5 | . . . . 5 Utility 2 | . . . . 2 Weapon 2 | . . . . 2 Highest Loss Streak 6 | . . . . 6 To Critical Strikes 1 | . . . . 1 Average Backups 5 | 3 4 7 7 4 Power 1 | . 1 1 1 1 Propulsion . | 1 . . . . Utility 2 | . 2 3 2 2 Weapon 1 | . . 2 4 . Tool/Special . | . . . . . Unused Backups 8 | . 3 . 1 4 Power 2 | . . . . 2 Propulsion 3 | . 3 . . . Utility 2 | . . . . 2 Weapon 1 | . . . 1 . Tool/Special . | . . . . . Average Slot Usage (%) 87 | . 100 100 72 69 Engine 12 | . 14 14 13 5 Treads 13 | . 28 17 . . Leg 13 | . . 10 28 21 Device 13 | . 14 14 14 10 Storage 13 | . 14 14 14 8 Energy Gun 16 | . 28 28 1 8 Peak Build Rating 45 | 9 9 16 17 45 Average Rating 14 | 8 9 11 13 40 On Entrance 10 | . 9 9 16 17 Naked Turns . | . . . . . Heaviest Build 54 | 14 19 22 22 54 Greatest Support 68 | 40 40 40 38 68 Greatest Overweight (x) 12 | . . . . 12 Average Overweight (x) . | . . . . . Largest Inventory Capacity 10 | 8 10 10 10 10 Average Capacity 9 | 7 9 10 10 10 Most Carried 10 | 4 5 10 10 8 Average Carried 6 | 3 4 9 9 5 Final Capacity 10 | 8 10 10 10 10 Final Carried 10 | 4 5 10 9 5 Class Distribution -------------------- 87% | Mutant 4% | Scavenger-Tank 4% | Scavenger-Mutant Dominant Class ---------------- Mutant | -10/Materials Mutant | -10/Subcaves Mutant | -7/Scraptown Scavenger-Tank | -5/Factory Resources | -11 -10 -10 -7 -5 ----------- Run | Yrd Mat Sub Scr Fac Matter Collected 487 | 280 30 30 54 93 Remotely 18 | 18 . . . . Salvage Created 1192 | 160 378 60 33 561 Parts 61 | 12 25 5 2 17 Haulers Intercepted . | . . . . . Recyclers Shooed . | . . . . . Parts Field Recycled . | . . . . . Retrieved Matter . | . . . . . Parts Self-Destructed 2 | . . 2 . . Prevented . | . . . . . Kills | -11 -10 -10 -7 -5 ------- Run | Yrd Mat Sub Scr Fac Combat Hostiles Destroyed 17 | . 7 2 1 7 Guns 14 | . 7 2 1 4 Cannons 1 | . . . . 1 AOE 1 | . . . . 1 Classes Destroyed 9 | 3 2 1 1 2 Worker 7 | 3 1 . . 3 Tunneler 1 | 1 . . . . Recycler 2 | 1 . . . 1 Watcher 5 | . 2 . . 3 Grunt 12 | . 7 . . 5 Hunter 1 | . . . . 1 Programmer 1 | . . . . 1 Subdweller 2 | . . 2 . . Federalist 1 | . . . 1 . Best Kill Streak 8 | 2 2 1 1 8 Combat Bots Only 4 | . 2 1 1 4 Max Kills in Single Turn 6 | 1 1 1 1 6 Gunslinging . | . . . . . Exploded 1 | . . . . 1 Melee . | . . . . . Uniques/NPCs Destroyed . | . . . . . Combat | -11 -10 -10 -7 -5 -------- Run | Yrd Mat Sub Scr Fac Hostile Shots Fired 203 | . 40 17 . 146 Missed 54 | . 16 3 . 35 Hits 149 | . 24 14 . 111 Projectile 149 | . 24 14 . 111 AOE 3 | . . . . 3 Critical Strikes 8 | . 2 . . 6 Damage Taken 2288 | 30 259 227 . 1772 Core 321 | . 59 28 . 234 Absorbed by Shields 36 | . . . . 36 Ignored by Resistances 647 | 8 78 65 . 496 Regen/Repaired (Parts) 152 | . . . 152 . Core Remaining (%) 82 | 100 . . 65 . Volleys Fired 90 | 8 30 20 1 31 Largest 3 | 2 2 2 2 3 Hottest 215 | 80 90 90 78 215 Shots Fired 201 | 15 59 39 2 86 Gun 178 | 15 59 39 2 63 Cannon 23 | . . . . 23 Launcher . | . . . . . Special . | . . . . . Kinetic 19 | . . . 1 18 Thermal 151 | 7 36 39 1 68 Explosive . | . . . . . Electromagnetic 31 | 8 23 . . . Robot Hit Streak 50 | 8 16 17 18 50 Robot Miss Streak 4 | 1 4 1 . 3 Penetration Max . | . . . . . Secondary Targets 3 | . 2 . . 1 Max Gunslinging Chain 1 | . 1 . . 1 Shots Hit Robots 157 | 13 40 33 1 70 Core Hits 58 | 5 21 7 1 24 Critical Kills . | . . . . . Critical Parts Destroyed . | . . . . . Critical Strikes 5 | . . 2 . 3 Burn 5 | . . 2 . 3 Melee Attacks . | . . . . . Impact . | . . . . . Slashing . | . . . . . Piercing . | . . . . . Sneak Attacks . | . . . . . Combat Hostiles . | . . . . . Follow-up Attacks . | . . . . . Damage Inflicted 3323 | 189 598 332 12 2192 Guns 1978 | 157 532 332 12 945 Cannons 645 | . . . . 645 Explosions 682 | 32 48 . . 602 Melee . | . . . . . Ramming 18 | . 18 . . . Kinetic 232 | . . . . 232 Thermal 2711 | 99 308 332 12 1960 Explosive . | . . . . . Electromagnetic 362 | 90 272 . . . Impact . | . . . . . Slashing . | . . . . . Piercing . | . . . . . Highest Corruption 3 | . . . . 3 Average Corruption 1 | . . . . 1 Corruption Purged . | . . . . . Corruption Blocked . | . . . . . Overload Shots . | . . . . . Overflow Damage 189 | . 18 . . 171 Projectiles 7 | . . . . 7 Explosions 182 | . 18 . . 164 Melee . | . . . . . Knockbacks . | . . . . . Impact . | . . . . . Kinetic . | . . . . . Secondary . | . . . . . Self-Inflicted Damage 195 | 31 26 . . 138 Shots 5 | 1 1 . . 3 Rammed 3 | . 3 . . . Targets Rammed 3 | . 3 . . . Kicked . | . . . . . Crushed . | . . . . . Highest Temperature 198 | 54 189 . 38 198 Average Temperature 80 | 21 59 . 25 106 Received Heat Transfer 774 | . 207 30 . 537 Siege Activations . | . . . . . Martial Activations . | . . . . . Shielding Activations . | . . . . . Robots Disrupted . | . . . . . Combat Hostiles . | . . . . . Robots Corrupted . | . . . . . Combat Hostiles . | . . . . . Parts Fried 2 | . 2 . . . Impact Corruptions . | . . . . . Robots Melted 1 | . . . . 1 Combat Hostiles 1 | . . . . 1 Parts Melted 5 | . 1 1 . 3 Heat Transferred 4609 | 200 649 1016 37 2707 Parts Sabotaged . | . . . . . Parts Stolen . | . . . . . Parts Stripped . | . . . . . Power Chain Reactions 2 | 1 1 . . . Alert | -11 -10 -10 -7 -5 ------- Run | Yrd Mat Sub Scr Fac Maximum Alert Level 1 | . . . . 1 Low Security (%) 95 | 100 100 . . 78 Level 1 4 | . . . . 21 Level 2 . | . . . . . Level 3 . | . . . . . Level 4 . | . . . . . Level 5 . | . . . . . High Security . | . . . . . Max Security . | . . . . . Peak Influence 253 | 10 87 . . 253 Initial . | . . . . . Average 26 | . 10 . . 101 Influence Increases 667 | 25 249 . . 393 Destroy 0b10 Robot/C 280 | . 140 . . 140 Destroy 0b10 Robot/NC 75 | 25 15 . . 35 Destroy Leader 80 | . 44 . . 36 Successful Hack 16 | . 16 . . . Disable Machine 90 | . . . . 90 Destroy Structure 66 | . 4 . . 62 Lose Combat Pursuer 60 | . 30 . . 30 Influence Decreases 554 | 25 249 . . 280 Time Decay 434 | 25 249 . . 160 Lost Part 120 | . . . . 120 Squads Dispatched 4 | . 1 . . 3 Investigation 1 | . 1 . . . Extermination 1 | . . . . 1 Reinforcement 2 | . . . . 2 Assault . | . . . . . Garrison . | . . . . . Intercept . | . . . . . Searches Triggered . | . . . . . Construction Impeded 1 | . . . . 1 Haulers Reinforced . | . . . . . Active Scanning Responses . | . . . . . Cargo Convoy Interrupts . | . . . . . Stealth | -11 -10 -10 -7 -5 --------- Run | Yrd Mat Sub Scr Fac Distress Signals 2 | . 1 . . 1 Communications Jammed . | . . . . . Distress Signals . | . . . . . Times Spotted 46 | . 13 11 6 16 Peak Tracking Total 7 | . 3 7 6 5 Tactical Retreats 4 | . 2 . . 2 Traps | -11 -10 -10 -7 -5 ------- Run | Yrd Mat Sub Scr Fac Traps Triggered 1 | . 1 . . . Indirectly . | . . . . . Trap Hack Attempts . | . . . . . Triggered . | . . . . . Disarmed . | . . . . . Reprogrammed . | . . . . . Reused . | . . . . . Traps Extracted . | . . . . . Installed . | . . . . . Triggered . | . . . . . Machines | -11 -10 -10 -7 -5 ---------- Run | Yrd Mat Sub Scr Fac Machines Disabled 10 | . . . . 10 Max in Single Turn 10 | . . . . 10 Machines Repaired . | . . . . . Machines Dismantled . | . . . . . Machines Sabotaged . | . . . . . Overloaded Fab Kills . | . . . . . Hacking | -11 -10 -10 -7 -5 --------- Run | Yrd Mat Sub Scr Fac Machines Accessed 13 | . 6 . 6 1 Terminals 6 | . 5 . . 1 Fabricators . | . . . . . Repair Stations . | . . . . . Recycling Units 1 | . 1 . . . Scanalyzers . | . . . . . Garrison Access . | . . . . . Total Hacks 60 | . 17 . 40 3 Successful 50 | . 7 . 40 3 Failed 10 | . 10 . . . Catastrophic . | . . . . . Database Lockouts . | . . . . . Manual 18 | . 14 . 3 1 Terminals 17 | . 14 . . 3 Fabricators . | . . . . . Repair Stations . | . . . . . Recycling Units 3 | . 3 . . . Scanalyzers . | . . . . . Garrison Access . | . . . . . Terminal Hacks 44 | . 2 . 40 2 Record 43 | . 1 . 40 2 Patrol Navigation 1 | . 1 . . . Fabricator Hacks . | . . . . . Repair Station Hacks . | . . . . . Recycling Unit Hacks 2 | . 2 . . . Report Inventory 2 | . 2 . . . Scanalyzer . | . . . . . Garrison Access Hacks . | . . . . . Unauthorized Hacks 4 | . 3 . . 1 Terminals 4 | . 3 . . 1 Botnet 4 | . 3 . . 1 Fabricators . | . . . . . Repair Stations . | . . . . . Recycling Units . | . . . . . Scanalyzers . | . . . . . Garrison Access . | . . . . . Data Cores Recovered . | . . . . . Used . | . . . . . Hacking Detections 6 | . 6 . . . Full Trace Events . | . . . . . Feedback Events . | . . . . . Feedback Blocked . | . . . . . Robot Schematics Acquired . | . . . . . Robots Built . | . . . . . Authchips . | . . . . . Time . | . . . . . Total Robot Build Rating . | . . . . . Part Schematics Acquired . | . . . . . Parts Built . | . . . . . Authchips . | . . . . . Time . | . . . . . Total Part Build Rating . | . . . . . Parts Repaired . | . . . . . Time . | . . . . . Parts Recycled . | . . . . . Recycled Matter . | . . . . . Retrieved Matter . | . . . . . Retrieved Components . | . . . . . Parts Scanalyzed . | . . . . . Part Schematics Acquired . | . . . . . Parts Damaged . | . . . . . Bothacking | -11 -10 -10 -7 -5 ------------ Run | Yrd Mat Sub Scr Fac Used RIF Installer . | . . . . . Robots Hacked . | . . . . . Non-combat . | . . . . . Combat . | . . . . . Robot Hacks Applied . | . . . . . Relay Couplers Released . | . . . . . Fabnet Peak Effective % . | . . . . . Robots Rewired . | . . . . . Allies Hacked . | . . . . . Hacks Repelled . | . . . . . Allies | -11 -10 -10 -7 -5 -------- Run | Yrd Mat Sub Scr Fac Total Allies . | . . . . . Largest Group . | . . . . . Highest-Rated Group . | . . . . . Highest-Rated Ally . | . . . . . Total Orders . | . . . . . Ally Attacks . | . . . . . Total Damage . | . . . . . Kills . | . . . . . Allies Corrupted . | . . . . . Allies Melted 3 | . . . 3 . Intel | -11 -10 -10 -7 -5 ------- Run | Yrd Mat Sub Scr Fac Active Infowar (turns) 4268 | 502 1402 672 1215 477 Terrain 4268 | 502 1402 672 1215 477 Robot Analysis Total . | . . . . . Derelict Logs Recovered . | . . . . . Drone Launches . | . . . . . Drone Recoveries . | . . . . . Exploration | -11 -10 -10 -7 -5 ------------- Run | Yrd Mat Sub Scr Fac Turns Passed 4376 | 592 1402 672 1215 495 Spaces Moved 2605 | 177 787 412 980 249 Core 6 | 5 . . . 1 Treads 1189 | 172 787 230 . . Legs 1410 | . . 182 980 248 Wheels . | . . . . . Hover . | . . . . . Flight . | . . . . . Fastest Speed 50 | 50 160 120 100 106 Average Speed 140 | 156 160 142 119 143 Slowest Speed 650 | 160 160 160 120 650 Overloaded Moves . | . . . . . Propulsion Burnouts . | . . . . . Robots Hopped . | . . . . . Potential Cave-ins . | . . . . . Cave-ins Triggered . | . . . . . Exploration Rate (%) 38 | 15 77 27 65 7 Regions Visited 4 Branch Regions 2 Pre-discovered Areas . | . . . . . Known Exits Taken . | . . . . . Unknown Exits Taken 4 | 1 1 1 1 . Scrap Searched . | . . . . . Spaces Dug . | . . . . . Terrain Destroyed 34 | . 3 . . 31 Melee . | . . . . . Projectile 2 | . . . . 2 AOE 32 | . 3 . . 29 Terrain Rammed . | . . . . . Walls Destroyed . | . . . . . Machines Disabled . | . . . . . Actions | -11 -10 -10 -7 -5 --------- Run | Yrd Mat Sub Scr Fac Total 3141 | 472 870 460 1021 318 Wait 373 | 276 40 10 27 20 Move 2601 | 176 786 411 979 249 Hop . | . . . . . Pick Up 23 | 4 4 9 2 4 Fast Attach 11 | 7 . . . 4 Attach 11 | . . . 3 8 Detach 2 | . . . 2 . Swap 11 | 1 3 3 2 2 Drop 15 | . 4 6 5 . Fire 90 | 8 30 20 1 31 Melee . | . . . . . Ram . | . . . . . Kick . | . . . . . Crush 3 | . 3 . . . Escape Stasis . | . . . . . Rewire 1 | . . 1 . . Trap . | . . . . . Miscellaneous . | . . . . . Route ------- -11/Scrapyard -10/Materials (discovered 4 exits: [*Mat x3] / [*Sub]) -10/Subcaves -7/Scraptown -5/Factory History --------- Turn | Location | Event 9 | -11/Scrapyard | Discovered new exit (range 15) 593 | -11/Scrapyard | Entered Materials 594 | -10/Materials | Build established: Mutant 863 | -10/Materials | Discovered new exit (range 13) 1647 | -10/Materials | Discovered new exit (range 5) 1698 | -10/Materials | Discovered new exit (range 13) 1981 | -10/Materials | Discovered new exit (range 9) 1995 | -10/Materials | Entered Subcaves 1996 | -10/Subcaves | Approached by a straggling Scientist 1998 | -10/Subcaves | Shifting Twisted Machinery released Barrage Gun 2014 | -10/Subcaves | Shifting Twisted Machinery released Mak. Power Source 2322 | -10/Subcaves | Ambushed by swarm of Subdwellers 2527 | -10/Subcaves | Shifting Twisted Machinery released Shrapnel Trap 2601 | -10/Subcaves | Scientist uncovered a shortcut to Scraptown 2667 | -10/Subcaves | Entered Scraptown 2889 | -7/Scraptown | Visited SPCMW 2925 | -7/Scraptown | Visited Comm Corps 3015 | -7/Scraptown | Visited Cave Peace 3060 | -7/Scraptown | Visited CR-KLE's Repair Center 3069 | -7/Scraptown | CR-KLE repaired 4 parts 3105 | -7/Scraptown | Visited UFD Registry 3105 | -7/Scraptown | Registered with UFD as "Zerospawn" 3131 | -7/Scraptown | Heard Great Nut preacher, LISTEN AND RECITE! 3269 | -7/Scraptown | Visited The Evicted 3310 | -7/Scraptown | Visited TADAMA 3394 | -7/Scraptown | Visited Cartography Club 3438 | -7/Scraptown | Visited Abandonware Association 3463 | -7/Scraptown | Learned abandonware demo "REPAIR.EXE" 3463 | -7/Scraptown | Learned abandonware demo "POISON.EXE" 3556 | -7/Scraptown | Visited Scrap Suit Storage 3563 | -7/Scraptown | Found Scrap Suit 3645 | -7/Scraptown | Met Optimus 3645 | -7/Scraptown | Accepted into 0bPrime 3715 | -7/Scraptown | Visited DA-N13 Charitable Foundation 3780 | -7/Scraptown | Discovered new exit (range 5) 3820 | -7/Scraptown | Civil war broke out across Scraptown 3882 | -7/Scraptown | Entered Factory 3882 | -5/Factory | Evolved 10 slots: Power x1, Propulsion x2, Utility x6, Weapon x1 3898 | -5/Factory | Lost 6 allies 4218 | -5/Factory | Spotted B-75 Beast 4377 | -5/Factory | Self-destructed Last Messages --------------- 04353_ Acquired Hardlight Generator. 04353_ Neutrino Reactor explodes. 04353_ Nuclear Reactor explodes. 04353_ Neutrino Reactor explodes. 04353_ U-05 Engineer destroyed. 04355_ Neutrino Reactor explodes. 04355_ R-10 Processor destroyed. 04355_ Door malfunctions. 04357_ P-70 Sage resets P-70 Sage, system corruption cleaned. 04359_ Imp. Terrain Scanner destroyed. 04362_ Destroyed Imp. Heat Sink. 04362_ Antigrav System melted. 04362_ P-70 Sage destroyed. 04367_ Carbon-fiber Leg destroyed. 04367_ Penetrated by Slug. 04367_ Critical hit (Destroy). 04367_ Beamcaster destroyed. 04367_ Carbon-fiber Leg destroyed. 04371_ Fission Core destroyed. 04374_ Penetrated by Slug. Map ----- +----------------------------------------------------+ | ?????????????????????????????????????????????????? | | ?????????????????????????????????????????????????? | | ?????????????????????????????????????????????????? | | ?????????????????????????????????????????????????? | | ?????????????????????????????????????????????????? | | ?????????????????????????????????????????????????? | | ?????????????????????????????????????????????????? | | ?????????????????????????????????????????????????? | | ?????????????????????????????????????????????????? | | ?????????????????????????????????????????????????? | | ?????????????????????????????????????????????????? | | ?????????????????????????????????????????????????? | | ?????????????????????????????????????????????????? | | ?????????????????????????????????????????????????? | | #????????????????????????????????????????????????? | | #?#??????????????????????????????????" ??????????? | | #??????????????????????????????????? ??????????? | | #????????????????????????#????????? ???????????? | | #?????????????????"??????????????? ???????????? | | #???????????????? ???????????##### ?????????????? | | #???#?????????????""???###### ######/????????? | | #??#??????????????"""??# *%= ????????? | | #?????????????? """"?# |!= ???????? | | #?????????????? """" # ???????? | | ???????????????? ??? ; = ??????? | | ???????????????????????# @! ! *%! R ??????? | | ??#????????????????????# ! |%! ??????? | | #?###################### !! p ??????? | | ??# ??????? | | ??# = ??????? | | ??# ???????? | | ??# ] ???????? | | ??# ????????? | | # " t ######????????? | | " " # ????????????? | | kk o + ????????????? | | ####### "???????????? | | #???##? "???????????? | | #???????????????????? | | #???????????????????? | | ###/##############+###???????????????????? | | # ??????? ??????????????????????????? | | # ???????????????????????????????????? | | # ""????????#????????????????????????????? | | % #????????????????????????????????????????? | | #????????????????????????????????????????? | | #?? ?????????????????????????????????????? | | #########????????????????????????????????????????? | | #????#??? ???????????????????????????????????????? | | #?#??#????""?????????????????????????????????????? | +----------------------------------------------------+ Best States ------------- Heat Dissipation 40 Coolant Potential 80 Energy Generation 28 Energy Capacity 380 Matter Stores 300 Matter Capacity 300 Sight Range 16 Terrain Scan Range 16 Terrain Scan Density 10 Armor Coverage 800 Resistance: KI 20 Resistance: TH 20 Resistance: EX 20 Resistance: EM 20 Resistance: I 20 Resistance: S 20 Resistance: P 20 Evasion (%) 55 Recoil Reduction 2 Offensive Hacking 10 Item Schematics ----------------- None Robot Schematics ------------------ None Fabricated ------------ Nothing Repaired ---------- Nothing Alien Tech Used ----------------- None Achievements -------------- It Was An Accident, I Swear Challenges ------------ None Game ------ Seed BeamCloakingMace Manual? 0 Play Time 01:11:05 Cumulative 22.1 hours Start 2025.08.21 @ 08:46:38 End 2025.08.23 @ 12:15:53 Sessions 3 Manual Loads 0 Difficulty Adventurer Special Mode None Game No. 13 Rogue 0 Adventurer 13 Explorer 0 Win Type - Total 0 Types 0/0/0/0/0/0/0/0/0/0 Lore% 12 Gallery% 21 Achievement% 23 Wizard Run 0 Options --------- Layout 2 ASCII 0 Keyboard 0 Movement Numpad Keybinds 0 Fullscreen 1 Font 32/SmallcapsGlow Map View 77x44 Zoom Use 0% Tactical HUD 1 Map Filters NONE Filters NONE Steam 1 RUN: 5d6edc0b-d4dc-4511-8468-4036c737eda4